[Event "*** Titled Tuesday Blitz"]
[Site "Chess.com"]
[Date "2020.11.03"]
[Round "3"]
[White "SGchess01"]
[Black "doons21"]
[Result "1/2-1/2"]
[WhiteElo "2838"]
[BlackElo "2595"]
[TimeControl "180+1"]
[EndTime "10:34:22 PST"]
[Termination "Game drawn by 50-move rule"]

1. d4 {[%clk 0:02:59.9]} 1... Nf6 {[%clk 0:03:00.2]} 2. c4 {[%clk 0:02:59.8]}
2... g6 {[%clk 0:03:00.8]} 3. Nc3 {[%clk 0:02:58.7]} 3... Bg7 {[%clk 0:03:01.3]}
4. e4 {[%clk 0:02:58.7]} 4... O-O {[%clk 0:03:02.2]} 5. f3 {[%clk 0:02:58.9]}
5... d6 {[%clk 0:03:02.3]} 6. Be3 {[%clk 0:02:59.3]} 6... Nbd7 {[%clk
0:02:59.7]} 7. Qd2 {[%clk 0:02:57.5]} 7... e5 {[%clk 0:02:57]} 8. Nge2 {[%clk
0:02:56.9]} 8... a6 {[%clk 0:02:57.1]} 9. O-O-O {[%clk 0:02:38.8]} 9... b5
{[%clk 0:02:50.6]} 10. g4 {[%clk 0:02:35.8]} 10... bxc4 {[%clk 0:02:22.9]} 11.
Bh6 {[%clk 0:02:33.8]} 11... exd4 {[%clk 0:02:22.8]} 12. Nxd4 {[%clk 0:02:33.3]}
12... Ne5 {[%clk 0:02:17.5]} 13. Be2 {[%clk 0:02:08.5]} 13... c5 {[%clk
0:01:43.2]} 14. Nc2 {[%clk 0:02:00.9]} 14... Be6 {[%clk 0:01:43.5]} 15. h4
{[%clk 0:01:58.2]} 15... Nd3+ {[%clk 0:01:34.6]} 16. Bxd3 {[%clk 0:01:38.7]}
16... cxd3 {[%clk 0:01:35.5]} 17. Na3 {[%clk 0:01:02.4]} 17... Bxh6 {[%clk
0:00:55.3]} 18. Qxh6 {[%clk 0:01:01.6]} 18... Kh8 {[%clk 0:00:55.5]} 19. h5
{[%clk 0:00:59.2]} 19... Ng8 {[%clk 0:00:55.5]} 20. Qe3 {[%clk 0:00:56.5]} 20...
g5 {[%clk 0:00:47]} 21. Qxd3 {[%clk 0:00:55.6]} 21... Qf6 {[%clk 0:00:39.5]} 22.
Rhf1 {[%clk 0:00:43.9]} 22... Rab8 {[%clk 0:00:39.1]} 23. Qxd6 {[%clk
0:00:31.3]} 23... Rb4 {[%clk 0:00:20.2]} 24. Nc2 {[%clk 0:00:24.6]} 24... Rbb8
{[%clk 0:00:16.7]} 25. Qxc5 {[%clk 0:00:22.3]} 25... Bxa2 {[%clk 0:00:15.3]} 26.
Qd4 {[%clk 0:00:20]} 26... Qxd4 {[%clk 0:00:14.7]} 27. Nxd4 {[%clk 0:00:20.5]}
27... Bc4 {[%clk 0:00:14.8]} 28. Rfe1 {[%clk 0:00:20.8]} 28... Ne7 {[%clk
0:00:13.9]} 29. Nf5 {[%clk 0:00:19.3]} 29... Ng8 {[%clk 0:00:12.7]} 30. Rd6
{[%clk 0:00:17.9]} 30... Rfc8 {[%clk 0:00:12.5]} 31. Ne3 {[%clk 0:00:16.6]}
31... Be6 {[%clk 0:00:12.5]} 32. Rxa6 {[%clk 0:00:16.3]} 32... Rc7 {[%clk
0:00:11.2]} 33. Nd5 {[%clk 0:00:16.4]} 33... Rcb7 {[%clk 0:00:11.5]} 34. Re2
{[%clk 0:00:16.2]} 34... Kg7 {[%clk 0:00:10.5]} 35. Rd2 {[%clk 0:00:15.9]} 35...
h6 {[%clk 0:00:09.6]} 36. Ne3 {[%clk 0:00:16.2]} 36... Rc8 {[%clk 0:00:09.2]}
37. Nf5+ {[%clk 0:00:16.3]} 37... Bxf5 {[%clk 0:00:08.6]} 38. exf5 {[%clk
0:00:17.2]} 38... Nf6 {[%clk 0:00:09.1]} 39. Kb1 {[%clk 0:00:17.5]} 39... Rxc3
{[%clk 0:00:08.5]} 40. Rdd6 {[%clk 0:00:17.6]} 40... Ne8 {[%clk 0:00:06.4]} 41.
Rd8 {[%clk 0:00:17.7]} 41... Nc7 {[%clk 0:00:05.6]} 42. f6+ {[%clk 0:00:18.3]}
42... Kh7 {[%clk 0:00:05.3]} 43. Rad6 {[%clk 0:00:17.6]} 43... Ne6 {[%clk
0:00:05.3]} 44. R8d7 {[%clk 0:00:16.9]} 44... Rcb3 {[%clk 0:00:05.1]} 45. Rxb7
{[%clk 0:00:12.6]} 45... Rxb7 {[%clk 0:00:06]} 46. Kc2 {[%clk 0:00:13.1]} 46...
Kg8 {[%clk 0:00:06.4]} 47. b3 {[%clk 0:00:13.1]} 47... Kf8 {[%clk 0:00:06.9]}
48. Kb2 {[%clk 0:00:13.4]} 48... Ke8 {[%clk 0:00:07.2]} 49. Ra6 {[%clk
0:00:13.6]} 49... Rxb3+ {[%clk 0:00:06.5]} 50. Kc2 {[%clk 0:00:11.7]} 50... Rb7
{[%clk 0:00:06.1]} 51. Ra8+ {[%clk 0:00:12.6]} 51... Kd7 {[%clk 0:00:06]} 52.
Rh8 {[%clk 0:00:13]} 52... Kd6 {[%clk 0:00:05.5]} 53. Rxh6 {[%clk 0:00:13.1]}
53... Ke5 {[%clk 0:00:06.1]} 54. Kd3 {[%clk 0:00:12.7]} 54... Rb3+ {[%clk
0:00:05.7]} 55. Ke2 {[%clk 0:00:13.2]} 55... Kf4 {[%clk 0:00:04.8]} 56. Rh7
{[%clk 0:00:12.8]} 56... Nd4+ {[%clk 0:00:05.2]} 57. Kd2 {[%clk 0:00:13.2]}
57... Nxf3+ {[%clk 0:00:05.2]} 58. Kc2 {[%clk 0:00:13.7]} 58... Rb7 {[%clk
0:00:04.9]} 59. h6 {[%clk 0:00:13.6]} 59... Nd4+ {[%clk 0:00:03.9]} 60. Kd3
{[%clk 0:00:13.6]} 60... Ne6 {[%clk 0:00:03.9]} 61. Rh8 {[%clk 0:00:14]} 61...
Rd7+ {[%clk 0:00:03.9]} 62. Kc4 {[%clk 0:00:14.1]} 62... Rd1 {[%clk 0:00:04.3]}
63. h7 {[%clk 0:00:13.5]} 63... Rh1 {[%clk 0:00:04.7]} 64. Kd5 {[%clk
0:00:14.4]} 64... Kxg4 {[%clk 0:00:04.6]} 65. Kd6 {[%clk 0:00:15]} 65... Kf5
{[%clk 0:00:04.7]} 66. Ke7 {[%clk 0:00:15.9]} 66... Rh6 {[%clk 0:00:03.1]} 67.
Kxf7 {[%clk 0:00:12.4]} 67... Rxf6+ {[%clk 0:00:03.4]} 68. Ke7 {[%clk
0:00:12.9]} 68... Rh6 {[%clk 0:00:03.5]} 69. Kf7 {[%clk 0:00:12.8]} 69... Ke5
{[%clk 0:00:04.1]} 70. Ke7 {[%clk 0:00:07.3]} 70... g4 {[%clk 0:00:04.3]} 71.
Kd7 {[%clk 0:00:06.8]} 71... g3 {[%clk 0:00:03.1]} 72. Kc8 {[%clk 0:00:07.3]}
72... g2 {[%clk 0:00:02.5]} 73. Rg8 {[%clk 0:00:08.2]} 73... Rxh7 {[%clk
0:00:02.8]} 74. Rxg2 {[%clk 0:00:08.9]} 74... Rc7+ {[%clk 0:00:03.4]} 75. Kb8
{[%clk 0:00:09.5]} 75... Rc4 {[%clk 0:00:04.3]} 76. Re2+ {[%clk 0:00:09.8]}
76... Kd6 {[%clk 0:00:04.7]} 77. Rd2+ {[%clk 0:00:10.4]} 77... Kc6 {[%clk
0:00:05.2]} 78. Rh2 {[%clk 0:00:09.2]} 78... Rb4+ {[%clk 0:00:05.5]} 79. Kc8
{[%clk 0:00:09]} 79... Ra4 {[%clk 0:00:06]} 80. Rc2+ {[%clk 0:00:09]} 80... Nc5
{[%clk 0:00:06.5]} 81. Kd8 {[%clk 0:00:09.5]} 81... Ra7 {[%clk 0:00:07]} 82. Ke8
{[%clk 0:00:09.5]} 82... Kd6 {[%clk 0:00:07.2]} 83. Rd2+ {[%clk 0:00:10]} 83...
Ke5 {[%clk 0:00:06.7]} 84. Re2+ {[%clk 0:00:10.5]} 84... Ne4 {[%clk 0:00:07.2]}
85. Kd8 {[%clk 0:00:10.8]} 85... Kf5 {[%clk 0:00:07.3]} 86. Kc8 {[%clk
0:00:10.4]} 86... Rh7 {[%clk 0:00:07.5]} 87. Kb8 {[%clk 0:00:10.6]} 87... Nd6
{[%clk 0:00:07.6]} 88. Re1 {[%clk 0:00:10.7]} 88... Ne4 {[%clk 0:00:06.9]} 89.
Kc8 {[%clk 0:00:10.7]} 89... Ke5 {[%clk 0:00:07.4]} 90. Kb8 {[%clk 0:00:11]}
90... Kd5 {[%clk 0:00:07.8]} 91. Rd1+ {[%clk 0:00:11.5]} 91... Kc6 {[%clk
0:00:08]} 92. Rc1+ {[%clk 0:00:11.3]} 92... Nc5 {[%clk 0:00:08.5]} 93. Rc2
{[%clk 0:00:11.5]} 93... Rh8+ {[%clk 0:00:08]} 94. Ka7 {[%clk 0:00:11.9]} 94...
Re8 {[%clk 0:00:08.9]} 95. Rc1 {[%clk 0:00:11.6]} 95... Re7+ {[%clk 0:00:09.2]}
96. Kb8 {[%clk 0:00:11.2]} 96... Rb7+ {[%clk 0:00:09.5]} 97. Ka8 {[%clk
0:00:11.4]} 97... Rh7 {[%clk 0:00:10.4]} 98. Kb8 {[%clk 0:00:11.3]} 98... Kb6
{[%clk 0:00:10.2]} 99. Rb1+ {[%clk 0:00:11.1]} 99... Kc6 {[%clk 0:00:10.6]} 100.
Rc1 {[%clk 0:00:10.9]} 100... Rg7 {[%clk 0:00:09]} 101. Rc2 {[%clk 0:00:10.7]}
101... Rg8+ {[%clk 0:00:08.9]} 102. Ka7 {[%clk 0:00:10.6]} 102... Rc8 {[%clk
0:00:08.2]} 103. Rc1 {[%clk 0:00:10.4]} 103... Rc7+ {[%clk 0:00:08.6]} 104. Kb8
{[%clk 0:00:10.5]} 104... Rb7+ {[%clk 0:00:09.1]} 105. Ka8 {[%clk 0:00:10.3]}
105... Rb5 {[%clk 0:00:09.1]} 106. Rc2 {[%clk 0:00:09.9]} 106... Kb6 {[%clk
0:00:09.5]} 107. Rc1 {[%clk 0:00:08.8]} 107... Nd7 {[%clk 0:00:07.8]} 108. Ra1
{[%clk 0:00:06.6]} 108... Kc6 {[%clk 0:00:07.9]} 109. Rc1+ {[%clk 0:00:05.2]}
109... Nc5 {[%clk 0:00:08.3]} 110. Ka7 {[%clk 0:00:04.6]} 110... Ra5+ {[%clk
0:00:07.8]} 111. Kb8 {[%clk 0:00:04.9]} 111... Kb6 {[%clk 0:00:08]} 112. Rb1+
{[%clk 0:00:05.1]} 112... Kc6 {[%clk 0:00:08.4]} 113. Rc1 {[%clk 0:00:05.7]}
113... Rb5+ {[%clk 0:00:06.6]} 114. Kc8 {[%clk 0:00:05.7]} 114... Ra5 {[%clk
0:00:06.2]} 115. Kd8 {[%clk 0:00:05.7]} 115... Kd6 {[%clk 0:00:05.8]} 116. Ke8
{[%clk 0:00:06]} 116... Ne4 {[%clk 0:00:04.9]} 117. Rd1+ {[%clk 0:00:06.3]}
117... Ke5 {[%clk 0:00:05.1]} 118. Re1 {[%clk 0:00:06.4]} 118... Ra7 {[%clk
0:00:05.7]} 119. Kd8 {[%clk 0:00:06.8]} 119... Kf5 {[%clk 0:00:05.9]} 120. Rf1+
{[%clk 0:00:06.9]} 120... Ke6 {[%clk 0:00:06.3]} 121. Re1 {[%clk 0:00:07.8]}
121... Kd5 {[%clk 0:00:06.9]} 122. Ke8 {[%clk 0:00:08.2]} 122... Nd6+ {[%clk
0:00:06.1]} 123. Kf8 {[%clk 0:00:08.6]} 123... Rf7+ {[%clk 0:00:05.8]} 124. Kg8
{[%clk 0:00:09.1]} 1/2-1/2

[Event "*** Titled Tuesday Blitz"]
[Site "Chess.com"]
[Date "2020.11.03"]
[Round "4"]
[White "Triumphmate"]
[Black "shaheus"]
[Result "1-0"]
[WhiteElo "2389"]
[BlackElo "2138"]
[TimeControl "180+1"]
[EndTime "10:36:23 PST"]
[Termination "Triumphmate won by resignation"]

1. e4 {[%clk 0:02:59.3]} 1... d5 {[%clk 0:02:59.6]} 2. exd5 {[%clk 0:02:59.2]}
2... Nf6 {[%clk 0:02:59.9]} 3. Nc3 {[%clk 0:03:00.1]} 3... Nxd5 {[%clk
0:02:59.5]} 4. Bc4 {[%clk 0:03:00.6]} 4... e6 {[%clk 0:02:59.1]} 5. Qf3 {[%clk
0:02:57.1]} 5... c6 {[%clk 0:02:58.9]} 6. Nge2 {[%clk 0:02:57.4]} 6... Nd7
{[%clk 0:02:59]} 7. d3 {[%clk 0:02:57.8]} 7... Ne5 {[%clk 0:02:56.8]} 8. Qg3
{[%clk 0:02:58.2]} 8... Nxc4 {[%clk 0:02:56.7]} 9. dxc4 {[%clk 0:02:59.1]} 9...
Nf6 {[%clk 0:02:57.1]} 10. Bd2 {[%clk 0:02:58.1]} 10... b6 {[%clk 0:02:46.2]}
11. O-O-O {[%clk 0:02:58]} 11... Qe7 {[%clk 0:02:32]} 12. Bf4 {[%clk 0:02:54]}
12... Nh5 {[%clk 0:02:30.5]} 13. Qf3 {[%clk 0:02:49.4]} 13... Nxf4 {[%clk
0:02:29.8]} 14. Qxc6+ {[%clk 0:02:49.4]} 14... Bd7 {[%clk 0:02:16.5]} 15. Qxa8+
{[%clk 0:02:49.7]} 15... Qd8 {[%clk 0:02:16.6]} 16. Qxd8+ {[%clk 0:02:48.9]}
16... Kxd8 {[%clk 0:02:15.4]} 17. Nxf4 {[%clk 0:02:49.8]} 1-0

[Event "*** Titled Tuesday Blitz"]
[Site "Chess.com"]
[Date "2020.11.03"]
[Round "4"]
[White "Agoking701"]
[Black "ailime26"]
[Result "1-0"]
[WhiteElo "2366"]
[BlackElo "1901"]
[TimeControl "180+1"]
[EndTime "10:37:01 PST"]
[Termination "Agoking701 won by resignation"]

1. e4 {[%clk 0:03:00.9]} 1... c5 {[%clk 0:02:58.6]} 2. Nf3 {[%clk 0:02:59.8]}
2... Nc6 {[%clk 0:02:59.1]} 3. c4 {[%clk 0:02:57.8]} 3... g6 {[%clk 0:02:56.3]}
4. d4 {[%clk 0:02:56.8]} 4... cxd4 {[%clk 0:02:55.5]} 5. Nxd4 {[%clk 0:02:57.7]}
5... Bg7 {[%clk 0:02:55.3]} 6. Be3 {[%clk 0:02:57.9]} 6... Nf6 {[%clk
0:02:51.2]} 7. Nc3 {[%clk 0:02:56.8]} 7... O-O {[%clk 0:02:50.8]} 8. Be2 {[%clk
0:02:56.3]} 8... Qc7 {[%clk 0:02:46.9]} 9. O-O {[%clk 0:02:53.8]} 9... a6 {[%clk
0:02:46.9]} 10. f4 {[%clk 0:02:48]} 10... d6 {[%clk 0:02:46.4]} 11. Rc1 {[%clk
0:02:46.5]} 11... e5 {[%clk 0:02:37.8]} 12. Nxc6 {[%clk 0:02:31]} 12... Qxc6
{[%clk 0:02:37]} 13. fxe5 {[%clk 0:02:07.3]} 13... dxe5 {[%clk 0:02:29.7]} 14.
Nd5 {[%clk 0:02:07.3]} 14... Nxe4 {[%clk 0:02:21.4]} 15. Ne7+ {[%clk 0:02:03.9]}
1-0

[Event "*** Titled Tuesday Blitz"]
[Site "Chess.com"]
[Date "2020.11.03"]
[Round "4"]
[White "AniJak"]
[Black "Snegokhod"]
[Result "0-1"]
[WhiteElo "2317"]
[BlackElo "2477"]
[TimeControl "180+1"]
[EndTime "10:37:27 PST"]
[Termination "Snegokhod won by resignation"]

1. e4 {[%clk 0:03:00.9]} 1... e5 {[%clk 0:02:59.5]} 2. Nc3 {[%clk 0:03:00.6]}
2... f5 {[%clk 0:02:57.6]} 3. d3 {[%clk 0:02:55.3]} 3... Nf6 {[%clk 0:02:57.1]}
4. g3 {[%clk 0:02:54.9]} 4... d5 {[%clk 0:02:51.9]} 5. exd5 {[%clk 0:02:51.5]}
5... c6 {[%clk 0:02:51.7]} 6. dxc6 {[%clk 0:02:49.7]} 6... Bc5 {[%clk
0:02:50.6]} 7. Bg2 {[%clk 0:02:46.3]} 7... Nxc6 {[%clk 0:02:48.7]} 8. Nge2
{[%clk 0:02:44.9]} 8... O-O {[%clk 0:02:46.3]} 9. O-O {[%clk 0:02:44.2]} 9...
Kh8 {[%clk 0:02:41.5]} 10. Kh1 {[%clk 0:02:42.8]} 10... Ng4 {[%clk 0:02:40.5]}
11. Qe1 {[%clk 0:02:37]} 11... Qe8 {[%clk 0:02:38.4]} 12. Na4 {[%clk 0:02:26.5]}
12... Bd6 {[%clk 0:02:32.7]} 13. f4 {[%clk 0:02:25.8]} 13... Nb4 {[%clk
0:02:30.4]} 14. Qd1 {[%clk 0:02:21.1]} 14... Qxa4 {[%clk 0:02:29]} 15. fxe5
{[%clk 0:02:16.1]} 15... Bxe5 {[%clk 0:02:23]} 16. d4 {[%clk 0:02:15.4]} 16...
Bd6 {[%clk 0:02:17.3]} 17. Bg5 {[%clk 0:02:10.7]} 17... Qxc2 {[%clk 0:02:09.8]}
18. Qe1 {[%clk 0:02:08.5]} 18... Nd3 {[%clk 0:02:06.9]} 19. Qa5 {[%clk
0:02:03.5]} 19... Qxe2 {[%clk 0:02:01.9]} 0-1

[Event "*** Titled Tuesday Blitz"]
[Site "Chess.com"]
[Date "2020.11.03"]
[Round "4"]
[White "Zq1"]
[Black "oskariot"]
[Result "1-0"]
[WhiteElo "2514"]
[BlackElo "2701"]
[TimeControl "180+1"]
[EndTime "10:38:10 PST"]
[Termination "Zq1 won by resignation"]

1. d4 {[%clk 0:03:00.9]} 1... Nf6 {[%clk 0:03:00]} 2. c4 {[%clk 0:03:00.8]} 2...
c6 {[%clk 0:03:00.3]} 3. Bf4 {[%clk 0:02:59.4]} 3... g6 {[%clk 0:02:56.9]} 4. e3
{[%clk 0:02:58.7]} 4... Bg7 {[%clk 0:02:56.9]} 5. Nc3 {[%clk 0:02:58.7]} 5...
O-O {[%clk 0:02:57.7]} 6. h3 {[%clk 0:02:58.8]} 6... a6 {[%clk 0:02:56.8]} 7.
Nf3 {[%clk 0:02:58.2]} 7... b5 {[%clk 0:02:56.2]} 8. a3 {[%clk 0:02:57.5]} 8...
Bb7 {[%clk 0:02:53.7]} 9. Be2 {[%clk 0:02:56.3]} 9... bxc4 {[%clk 0:02:48.4]}
10. Bxc4 {[%clk 0:02:55.9]} 10... d6 {[%clk 0:02:48.7]} 11. O-O {[%clk
0:02:54.7]} 11... a5 {[%clk 0:02:49.2]} 12. Bh2 {[%clk 0:02:49]} 12... Ba6
{[%clk 0:02:49.5]} 13. Qe2 {[%clk 0:02:46]} 13... Qb6 {[%clk 0:02:46]} 14. Rab1
{[%clk 0:02:44.6]} 14... Bxc4 {[%clk 0:02:31.6]} 15. Qxc4 {[%clk 0:02:43.6]}
15... Qa6 {[%clk 0:02:32.5]} 16. Qa2 {[%clk 0:02:42.8]} 16... Nbd7 {[%clk
0:02:32.7]} 17. e4 {[%clk 0:02:40.6]} 17... Nb6 {[%clk 0:02:27.9]} 18. e5 {[%clk
0:02:37.5]} 18... dxe5 {[%clk 0:02:20.7]} 19. Nxe5 {[%clk 0:02:36.1]} 19... Nbd5
{[%clk 0:02:19.2]} 20. Rbc1 {[%clk 0:02:26.7]} 20... Rfc8 {[%clk 0:02:17.8]} 21.
Rfe1 {[%clk 0:02:25.1]} 21... e6 {[%clk 0:02:17.3]} 22. Na4 {[%clk 0:02:20.6]}
22... Qa7 {[%clk 0:01:52]} 23. Qc4 {[%clk 0:02:16.4]} 23... Nb6 {[%clk
0:01:48.1]} 24. Nxb6 {[%clk 0:02:14.8]} 24... Qxb6 {[%clk 0:01:49]} 25. Nxc6
{[%clk 0:02:04.8]} 25... Nd5 {[%clk 0:01:49.2]} 26. b4 {[%clk 0:02:00.4]} 26...
axb4 {[%clk 0:01:45.6]} 27. axb4 {[%clk 0:02:00]} 27... Nxb4 {[%clk 0:01:41.7]}
28. Ne7+ {[%clk 0:01:56.4]} 1-0

[Event "*** Titled Tuesday Blitz"]
[Site "Chess.com"]
[Date "2020.11.03"]
[Round "4"]
[White "mortngabriel"]
[Black "Michaelson_11"]
[Result "1-0"]
[WhiteElo "2325"]
[BlackElo "2138"]
[TimeControl "180+1"]
[EndTime "10:38:41 PST"]
[Termination "mortngabriel won by resignation"]

1. e4 {[%clk 0:03:00.9]} 1... c5 {[%clk 0:02:59.6]} 2. Nc3 {[%clk 0:02:58.3]}
2... Nc6 {[%clk 0:02:59.2]} 3. Bb5 {[%clk 0:02:57.8]} 3... g6 {[%clk 0:02:56.7]}
4. Bxc6 {[%clk 0:02:56.9]} 4... dxc6 {[%clk 0:02:52.8]} 5. f4 {[%clk 0:02:57.4]}
5... Bg7 {[%clk 0:02:52.1]} 6. Nf3 {[%clk 0:02:57.7]} 6... b5 {[%clk 0:02:51.4]}
7. d3 {[%clk 0:02:55.9]} 7... b4 {[%clk 0:02:50.9]} 8. Na4 {[%clk 0:02:53.9]}
8... c4 {[%clk 0:02:46]} 9. dxc4 {[%clk 0:02:52]} 9... Qxd1+ {[%clk 0:02:44]}
10. Kxd1 {[%clk 0:02:52.9]} 10... Ba6 {[%clk 0:02:41]} 11. Bd2 {[%clk
0:02:40.4]} 11... Rd8 {[%clk 0:02:24]} 12. Kc1 {[%clk 0:02:39.1]} 12... Bxc4
{[%clk 0:02:17.4]} 13. Bxb4 {[%clk 0:02:33.3]} 13... Nf6 {[%clk 0:02:17.2]} 14.
Re1 {[%clk 0:02:31.9]} 14... Nd7 {[%clk 0:02:03.6]} 15. Bc3 {[%clk 0:02:26.7]}
15... f6 {[%clk 0:01:42.6]} 16. b3 {[%clk 0:02:05.9]} 16... Bb5 {[%clk
0:01:39.1]} 17. Nb2 {[%clk 0:02:05]} 17... O-O {[%clk 0:01:32.2]} 18. Nd4 {[%clk
0:02:00]} 18... Nc5 {[%clk 0:01:08.8]} 19. b4 {[%clk 0:01:59.1]} 19... f5 {[%clk
0:01:03.1]} 20. Nxb5 {[%clk 0:01:53.8]} 20... cxb5 {[%clk 0:01:03.3]} 21. Bxg7
{[%clk 0:01:53.2]} 1-0

[Event "*** Titled Tuesday Blitz"]
[Site "Chess.com"]
[Date "2020.11.03"]
[Round "4"]
[White "swimmerchess"]
[Black "PotapovaM"]
[Result "1-0"]
[WhiteElo "2851"]
[BlackElo "2599"]
[TimeControl "180+1"]
[EndTime "10:38:54 PST"]
[Termination "swimmerchess won by resignation"]

1. e4 {[%clk 0:03:00.9]} 1... c5 {[%clk 0:03:00]} 2. Nf3 {[%clk 0:03:00.7]} 2...
d6 {[%clk 0:03:00.6]} 3. d4 {[%clk 0:03:00.6]} 3... cxd4 {[%clk 0:03:01.5]} 4.
Nxd4 {[%clk 0:03:01.5]} 4... Nf6 {[%clk 0:03:02]} 5. Nc3 {[%clk 0:03:02.1]} 5...
a6 {[%clk 0:03:02.6]} 6. Bg5 {[%clk 0:03:02.6]} 6... e6 {[%clk 0:03:03]} 7. f4
{[%clk 0:03:02.9]} 7... h6 {[%clk 0:03:03.6]} 8. Bh4 {[%clk 0:03:02.7]} 8... Qb6
{[%clk 0:03:03.9]} 9. a3 {[%clk 0:03:03.2]} 9... Be7 {[%clk 0:03:04]} 10. Bf2
{[%clk 0:03:03.2]} 10... Qc7 {[%clk 0:03:04.6]} 11. Qf3 {[%clk 0:03:03.4]} 11...
b5 {[%clk 0:03:05.1]} 12. O-O-O {[%clk 0:03:02.8]} 12... Bb7 {[%clk 0:03:00.9]}
13. g4 {[%clk 0:02:59.8]} 13... Nbd7 {[%clk 0:02:59.9]} 14. h4 {[%clk
0:02:32.1]} 14... h5 {[%clk 0:02:59.8]} 15. g5 {[%clk 0:02:30.5]} 15... Ng4
{[%clk 0:03:00]} 16. g6 {[%clk 0:02:28.3]} 16... O-O-O {[%clk 0:02:19.8]} 17.
gxf7 {[%clk 0:02:25.7]} 17... Nc5 {[%clk 0:02:19.6]} 18. Bh3 {[%clk 0:02:23.1]}
18... Kb8 {[%clk 0:02:07.9]} 19. Bxg4 {[%clk 0:02:09.5]} 19... hxg4 {[%clk
0:02:08.8]} 20. Qxg4 {[%clk 0:02:10.4]} 20... Nxe4 {[%clk 0:02:08.8]} 21. Nxe4
{[%clk 0:02:10.5]} 21... Bxe4 {[%clk 0:02:08.3]} 22. Rhe1 {[%clk 0:02:11.4]}
22... d5 {[%clk 0:01:53.6]} 23. Qxe6 {[%clk 0:02:03.8]} 23... Rc8 {[%clk
0:01:45]} 24. Qxa6 {[%clk 0:01:41.8]} 24... Bxc2 {[%clk 0:01:22.3]} 25. Nc6+
{[%clk 0:01:41.5]} 1-0

[Event "*** Titled Tuesday Blitz"]
[Site "Chess.com"]
[Date "2020.11.03"]
[Round "4"]
[White "ciucas1892"]
[Black "CarlssonLudvig"]
[Result "0-1"]
[WhiteElo "2264"]
[BlackElo "2442"]
[TimeControl "180+1"]
[EndTime "10:39:02 PST"]
[Termination "CarlssonLudvig won by resignation"]

1. d4 {[%clk 0:02:43.5]} 1... Nf6 {[%clk 0:02:57.4]} 2. Nf3 {[%clk 0:02:42.9]}
2... d5 {[%clk 0:02:55.6]} 3. g3 {[%clk 0:02:42.7]} 3... Bf5 {[%clk 0:02:53.3]}
4. Bg2 {[%clk 0:02:43.6]} 4... e6 {[%clk 0:02:53.5]} 5. O-O {[%clk 0:02:41]}
5... c6 {[%clk 0:02:53.7]} 6. c4 {[%clk 0:02:34.3]} 6... dxc4 {[%clk 0:02:47.5]}
7. a4 {[%clk 0:02:34.7]} 7... Be7 {[%clk 0:02:34.7]} 8. Na3 {[%clk 0:02:29.6]}
8... O-O {[%clk 0:02:33.9]} 9. Nxc4 {[%clk 0:02:28.1]} 9... Na6 {[%clk
0:02:33.9]} 10. h3 {[%clk 0:02:21.8]} 10... Nb4 {[%clk 0:02:33]} 11. g4 {[%clk
0:02:19.2]} 11... Be4 {[%clk 0:02:32.8]} 12. Bf4 {[%clk 0:02:14.5]} 12... Nfd5
{[%clk 0:02:30.7]} 13. Bg3 {[%clk 0:02:13.3]} 13... a5 {[%clk 0:02:23.3]} 14.
Rc1 {[%clk 0:02:07.8]} 14... Nb6 {[%clk 0:02:08.5]} 15. Qd2 {[%clk 0:01:41.7]}
15... Nxa4 {[%clk 0:02:00.6]} 16. Ra1 {[%clk 0:01:34.2]} 16... Nb6 {[%clk
0:01:48.2]} 17. Nxa5 {[%clk 0:01:28.5]} 17... Rxa5 {[%clk 0:01:48.1]} 18. Rxa5
{[%clk 0:01:26.5]} 18... Nc4 {[%clk 0:01:48.2]} 19. Qf4 {[%clk 0:01:10.3]} 19...
Bxf3 {[%clk 0:01:44.2]} 20. Bxf3 {[%clk 0:00:54.6]} 20... Qxa5 {[%clk
0:01:42.1]} 0-1

[Event "*** Titled Tuesday Blitz"]
[Site "Chess.com"]
[Date "2020.11.03"]
[Round "4"]
[White "Ermito2020"]
[Black "dpopadic"]
[Result "0-1"]
[WhiteElo "2580"]
[BlackElo "2424"]
[TimeControl "180+1"]
[EndTime "10:39:04 PST"]
[Termination "dpopadic won by resignation"]

1. e4 {[%clk 0:03:00.9]} 1... c5 {[%clk 0:02:59.2]} 2. Nf3 {[%clk 0:03:01.4]}
2... Nc6 {[%clk 0:02:59]} 3. d4 {[%clk 0:03:01.2]} 3... cxd4 {[%clk 0:02:58.9]}
4. Nxd4 {[%clk 0:03:02.1]} 4... Nf6 {[%clk 0:02:58.6]} 5. Nc3 {[%clk 0:03:02.6]}
5... e5 {[%clk 0:02:58.5]} 6. Ndb5 {[%clk 0:03:03.2]} 6... d6 {[%clk 0:02:58.1]}
7. Bg5 {[%clk 0:03:03.8]} 7... a6 {[%clk 0:02:57.6]} 8. Na3 {[%clk 0:03:04.3]}
8... b5 {[%clk 0:02:57.6]} 9. Nd5 {[%clk 0:03:04.8]} 9... Be7 {[%clk 0:02:57.7]}
10. Bxf6 {[%clk 0:03:05.3]} 10... Bxf6 {[%clk 0:02:57.8]} 11. c4 {[%clk
0:03:05.9]} 11... b4 {[%clk 0:02:56.7]} 12. Nc2 {[%clk 0:03:06.4]} 12... O-O
{[%clk 0:02:56.4]} 13. Be2 {[%clk 0:03:06.4]} 13... Rb8 {[%clk 0:02:56.4]} 14.
O-O {[%clk 0:03:06.7]} 14... b3 {[%clk 0:02:54.8]} 15. axb3 {[%clk 0:03:06.3]}
15... Rxb3 {[%clk 0:02:54.7]} 16. Rb1 {[%clk 0:03:01.7]} 16... Bg5 {[%clk
0:02:51]} 17. Ne1 {[%clk 0:02:52.1]} 17... Rb8 {[%clk 0:02:48.7]} 18. Nf3 {[%clk
0:02:50]} 18... Bh6 {[%clk 0:02:45.9]} 19. b4 {[%clk 0:02:49.3]} 19... Be6
{[%clk 0:02:43.4]} 20. b5 {[%clk 0:02:48.3]} 20... axb5 {[%clk 0:02:42.8]} 21.
cxb5 {[%clk 0:02:49.2]} 21... Ne7 {[%clk 0:02:36.9]} 22. Nxe7+ {[%clk 0:02:43]}
22... Qxe7 {[%clk 0:02:36.8]} 23. b6 {[%clk 0:02:31]} 23... Kh8 {[%clk
0:02:29.9]} 24. Qa4 {[%clk 0:02:16.8]} 24... f5 {[%clk 0:02:28]} 25. Bc4 {[%clk
0:01:53.2]} 25... fxe4 {[%clk 0:02:26.9]} 26. Bxe6 {[%clk 0:01:44.7]} 26... exf3
{[%clk 0:02:23]} 27. Bd5 {[%clk 0:01:40.6]} 27... fxg2 {[%clk 0:01:47]} 28. Bxg2
{[%clk 0:01:38.7]} 28... Bf4 {[%clk 0:01:46.8]} 29. b7 {[%clk 0:01:36.4]} 29...
Qh4 {[%clk 0:01:19.3]} 30. h3 {[%clk 0:01:35.7]} 30... Bh2+ {[%clk 0:01:18.1]}
0-1